fUSD/lending_fUSD_20250826
["ID","MTS","AMOUNT","RATE_DAILY","PERIOD"]
[381383251,1756173043626,-731.52,0.00016712,2]
[381383252,1756173043635,-400.0,0.00016712,2]
[381383253,1756173043644,-430.35,0.00016712,2]
[381383254,1756173043653,-400.0,0.00016712,2]
[381383255,1756173043663,-400.0,0.00016712,2]
[381383256,1756173043672,-400.0,0.00016712,2]
[381383257,1756173043681,-1003.23,0.00016712,2]
[381383258,1756173043690,-1351.51,0.00016712,2]
[381383259,1756173043699,-652.99,0.00016712,2]
[381383260,1756173043709,-400.0,0.00016712,2]
[381383261,1756173043718,-641.84,0.00016712,2]
[381383262,1756173043727,-557.47,0.00016712,2]
[381383263,1756173043736,-870.48,0.00016712,2]
[381383264,1756173043745,-680.98,0.00016712,2]
[381383265,1756173043754,-726.75,0.00016712,2]
[381383266,1756173043763,-282.22754321,0.00016712,2]
[381383267,1756173043773,-1287.66,0.00016712,2]
[381383268,1756173043782,-1221.13,0.00016712,2]
[381383269,1756173043791,-1236.96,0.00016712,2]
[381383270,1756173043800,-645.99,0.00016712,2]
[381383271,1756173043810,-1000.0,0.00016712,2]
[381383272,1756173043819,-400.0,0.00016712,2]
[381383273,1756173043828,-1184.69,0.00016712,2]
[381383274,1756173043837,-1130.32,0.00016712,2]
[381383275,1756173043846,-1043.67,0.00016712,2]
[381383276,1756173043855,-400.0,0.00016712,2]
[381383277,1756173043864,-605.38,0.00016712,2]
[381383278,1756173043874,-400.0,0.00016712,2]
[381383279,1756173043883,-511.23,0.00016712,2]
[381383280,1756173043892,-1266.31,0.00016712,2]
[381383281,1756173043901,-669.86,0.00016712,2]
[381383282,1756173043910,-902.29,0.00016712,2]
[381383283,1756173043919,-448.33,0.00016712,2]
[381383284,1756173043928,-476.01,0.00016712,2]
[381383285,1756173043937,-400.0,0.00016712,2]
[381383286,1756173043946,-604.33,0.00016712,2]
[381383287,1756173043956,-813.18,0.00016712,2]
[381383288,1756173043965,-400.0,0.00016712,2]
[381383289,1756173043974,-631.57,0.00016712,2]
[381383290,1756173043983,-1139.15,0.00016712,2]
[381383291,1756173043992,-400.0,0.00016712,2]
[381383292,1756173044001,-1637.26,0.00016712,2]
[381383293,1756173044010,-530.21,0.00016712,2]
[381383294,1756173044019,-1049.74,0.00016712,2]
[381383295,1756173044028,-497.41,0.00016712,2]
[381383296,1756173044037,-543.61,0.00016712,2]
[381383297,1756173044046,-1644.51,0.00016712,2]
[381383298,1756173044055,-455.84,0.00016712,2]
[381383299,1756173044065,-431.92,0.00016712,2]
[381383300,1756173044074,-986.01,0.00016712,2]
[381383301,1756173044083,-588.13,0.00016712,2]
[381383302,1756173044092,-408.15,0.00016712,2]
[381383303,1756173044101,-436.05,0.00016712,2]
[381383304,1756173044110,-489.3,0.00016712,2]
[381383305,1756173044119,-486.23,0.00016712,2]
[381383306,1756173044128,-891.03,0.00016712,2]
[381383307,1756173044136,-1334.59,0.00016712,2]
[381383308,1756173044146,-484.06,0.00016712,2]
[381383309,1756173044155,-746.8,0.00016712,2]
[381383310,1756173044164,-775.74,0.00016712,2]
[381383311,1756173044173,-642.79,0.00016712,2]
[381383312,1756173044182,-488.0,0.00016712,2]
[381383313,1756173044191,-400.0,0.00016712,2]
[381383314,1756173044201,-400.0,0.00016712,2]
[381383315,1756173044211,-400.0,0.00016712,2]
[381383316,1756173044224,-400.0,0.00016712,2]
[381383317,1756173044233,-540.17,0.00016712,2]
[381383318,1756173044242,-400.0,0.00016712,2]
[381383319,1756173044252,-823.49,0.00016712,2]
[381383320,1756173044262,-1036.1,0.00016712,2]
[381383321,1756173044272,-1071.98,0.00016712,2]
[381383322,1756173044281,-400.0,0.00016712,2]
[381383323,1756173044291,-742.7,0.00016712,2]
[381383324,1756173044301,-932.48,0.00016712,2]
[381383325,1756173044310,-856.32,0.00016712,2]
[381383326,1756173044320,-400.0,0.00016712,2]
[381383327,1756173044329,-400.0,0.00016712,2]
[381383328,1756173044338,-556.24,0.00016712,2]
[381383329,1756173044347,-1983.9,0.00016712,2]
[381383330,1756173044357,-821.98,0.00016712,2]
[381383331,1756173044366,-774.3,0.00016712,2]
[381383332,1756173044375,-400.0,0.00016712,2]
[381383333,1756173044384,-935.94,0.00016712,2]
[381383334,1756173044393,-985.25,0.00016712,2]
[381383335,1756173044403,-780.92,0.00016712,2]
[381383336,1756173044413,-730.24,0.00016712,2]
[381383337,1756173044422,-996.13,0.00016712,2]
[381383338,1756173044431,-400.0,0.00016712,2]
[381383339,1756173044440,-765.81,0.00016712,2]
[381383340,1756173044450,-606.98,0.00016712,2]
[381383341,1756173044459,-824.01,0.00016712,2]
[381383342,1756173044468,-400.0,0.00016712,2]
[381383343,1756173044478,-524.5,0.00016712,2]
[381383344,1756173044487,-1006.55,0.00016712,2]
[381383345,1756173044496,-649.91,0.00016712,2]
[381383346,1756173044505,-400.0,0.00016712,2]
[381383347,1756173044515,-400.91692129,0.00016712,2]
[381383348,1756173044524,-400.0,0.00016712,2]
[381383349,1756173044533,-787.5,0.00016712,2]
[381383350,1756173044543,-400.0,0.00016712,2]
[381383351,1756173044552,-523.08,0.00016712,2]
[381383352,1756173044561,-420.06,0.00016712,2]
[381383353,1756173044571,-1075.04,0.00016712,2]
[381383354,1756173044580,-501.05,0.00016712,2]
[381383355,1756173044590,-400.0,0.00016712,2]
[381383356,1756173044599,-1012.33,0.00016712,2]
[381383357,1756173044608,-678.34,0.00016712,2]
[381383358,1756173044618,-827.16,0.00016712,2]
[381383359,1756173044627,-1176.89,0.00016712,2]
[381383360,1756173044636,-458.52,0.00016712,2]
[381383361,1756173044645,-400.0,0.00016712,2]
[381383362,1756173044655,-400.0,0.00016712,2]
[381383363,1756173044664,-448.77212279,0.00016712,2]
[381383364,1756173044674,-415.47,0.00016712,2]
[381383365,1756173044684,-862.67,0.00016712,2]
[381383366,1756173044694,-2012.31,0.00016712,2]
[381383367,1756173044703,-400.0,0.00016712,2]
[381383368,1756173044712,-566.99,0.00016712,2]
[381383369,1756173044722,-1235.24,0.00016712,2]
[381383370,1756173044732,-400.0,0.00016712,2]
[381383371,1756173044741,-543.52,0.00016712,2]
[381383372,1756173044751,-1005.79,0.00016712,2]
[381383373,1756173044761,-1208.39,0.00016712,2]
[381383374,1756173044770,-520.88,0.00016712,2]
[381383375,1756173044780,-507.47,0.00016712,2]
[381383376,1756173044789,-681.64,0.00016712,2]
[381383377,1756173044799,-400.0,0.00016712,2]
[381383378,1756173044809,-400.0,0.00016712,2]
[381383379,1756173044818,-1542.39,0.00016712,2]
[381383380,1756173044827,-400.0,0.00016712,2]
[381383381,1756173044837,-842.56,0.00016712,2]
[381383382,1756173044848,-2514.76,0.00016712,2]
[381383383,1756173044857,-994.83,0.00016712,2]
[381383384,1756173044866,-780.23,0.00016712,2]
[381383385,1756173044875,-400.0,0.00016712,2]
[381383386,1756173044885,-450.31,0.00016712,2]
[381383387,1756173044894,-400.0,0.00016712,2]
[381383388,1756173044904,-400.0,0.00016712,2]
[381383389,1756173044913,-400.0,0.00016712,2]
[381383390,1756173044922,-946.34,0.00016712,2]
[381383391,1756173044932,-1294.87,0.00016712,2]
[381383392,1756173044941,-402.18,0.00016712,2]
[381383393,1756173044951,-432.0,0.00016712,2]
[381383394,1756173044961,-688.3,0.00016712,2]
[381383395,1756173044970,-860.45,0.00016712,2]
[381383396,1756173044979,-400.0,0.00016712,2]
[381383397,1756173044989,-341.82086453,0.00016712,2]
[381383398,1756173044998,-193.47434535,0.00016712,2]
[381383399,1756173045009,-400.0,0.00016712,2]
[381383400,1756173045020,-665.38,0.00016712,2]
[381383401,1756173045029,-469.37,0.00016712,2]
[381383402,1756173045038,-831.6,0.00016712,2]
[381383403,1756173045048,-764.28,0.00016712,2]
[381383404,1756173045058,-5121.72,0.00016712,2]
[381383405,1756173045067,-1041.01,0.00016712,2]
[381383406,1756173045077,-909.82,0.00016712,2]
[381383407,1756173045086,-740.06,0.00016712,2]
[381383408,1756173045097,-676.16,0.00016712,2]
[381383409,1756173045107,-2520.37,0.00016712,2]
[381383410,1756173045116,-400.0,0.00016712,2]
[381383411,1756173045126,-400.0,0.00016712,2]
[381383412,1756173045135,-1157.49,0.00016712,2]
[381383413,1756173045145,-711.33,0.00016712,2]
[381383414,1756173045154,-700.01,0.00016712,2]
[381383415,1756173045164,-400.0,0.00016712,2]
[381383416,1756173045174,-400.0,0.00016712,2]
[381383417,1756173045185,-400.0,0.00016712,2]
[381383418,1756173045194,-524.1,0.00016712,2]
[381383419,1756173045203,-400.0,0.00016712,2]
[381383420,1756173045214,-516.72,0.00016712,2]
[381383421,1756173045227,-1319.6,0.00016712,2]
[381383422,1756173045241,-1417.81,0.00016712,2]
[381383423,1756173045252,-400.0,0.00016712,2]
[381383424,1756173045261,-818.53568732,0.00016712,2]
[381383426,1756173046188,-473.74431268,0.00016712,2]
[381383427,1756173046198,-400.0,0.00016712,2]
[381383428,1756173046209,-400.0,0.00016712,2]
[381383429,1756173046220,-42.61376806,0.00016712,2]
[381383430,1756173046251,-150.0,0.00013698,3]
[381383431,1756173046260,-325.96836484,0.00016712,2]
[381383432,1756173046294,-411.6778671,0.00016712,2]
[381383433,1756173046304,-163.23167062,0.00016712,2]
[381383435,1756173049895,-376.187654,0.00016438,2]
[381383436,1756173049908,-693.602346,0.00016438,2]
[381383437,1756173049917,-400.0,0.00016438,2]
[381383438,1756173049927,-255.43183195,0.00016438,2]
[381383439,1756173049937,-1399.96582205,0.00016438,2]
[381383440,1756173052415,-186.60417795,0.00016438,2]
[381383441,1756173052425,-156.11598061,0.00016438,2]
[381383453,1756173718291,182.0,0.00028767,120]
[381383463,1756174039308,200.0,0.00015004,2]
[381383464,1756174046717,202.12143193,0.00015004,2]
[381383465,1756174105524,507.0,0.00028767,120]
[381383468,1756174232197,-281.171,0.00014891,2]
[381383469,1756174232209,-1719.821257,0.00014891,2]
[381383470,1756174232219,-152.0,0.00014966,2]
[381383471,1756174232228,-738.67856807,0.00015004,2]
[381383472,1756174232238,-1000.0,0.00015018,2]
[381383473,1756174232247,-717.27,0.00015181,2]
[381383474,1756174232257,-1006.32,0.00015382,2]
[381383475,1756174232267,-160.0,0.00015389,7]
[381383476,1756174232276,-250.0,0.00015389,2]
[381383477,1756174232286,-845.88,0.00015389,2]
[381383478,1756174232295,-1200.0,0.000154,2]
[381383479,1756174232305,-1524.0,0.00015401,2]
[381383480,1756174232315,-180.55,0.0001548,2]
[381383481,1756174232324,-385.0,0.000155,2]
[381383482,1756174232334,-300.0,0.00015597,2]
[381383483,1756174232343,-153.02,0.00015624,2]
[381383484,1756174232353,-153.02,0.00015651,2]
[381383485,1756174232363,-1500.0,0.00015658,2]
[381383486,1756174232375,-153.02,0.00015679,2]
[381383487,1756174232384,-153.02,0.00015706,2]
[381383488,1756174232394,-153.02,0.00015733,2]
[381383489,1756174232403,-150.0,0.00015756,2]
[381383490,1756174232413,-150.0,0.00015756,2]
[381383491,1756174232424,-150.0,0.00015756,2]
[381383492,1756174232434,-152.68001579,0.00015756,2]
[381383493,1756174232450,-151.44852476,0.00015756,2]
[381383494,1756174232460,-153.83542786,0.00015756,2]
[381383495,1756174232470,-150.0,0.00015756,2]
[381383496,1756174232480,-153.87584645,0.00015756,2]
[381383497,1756174232489,-152.00112268,0.00015756,2]
[381383498,1756174232498,-150.0,0.00015756,2]
[381383499,1756174232508,-175.58,0.00015763,2]
[381383500,1756174232519,-1598.0,0.00015893,2]
[381383501,1756174232529,-161.24,0.00015936,2]
[381383502,1756174232543,-999.99,0.00016116,2]
[381383503,1756174232552,-5166.57,0.00016116,2]
[381383504,1756174232561,-9691.67,0.00016116,2]
[381383505,1756174232571,-150.99,0.00016116,2]
[381383506,1756174232580,-9999.99,0.00016116,2]
[381383507,1756174232589,-5627.74,0.00016116,2]
[381383508,1756174232599,-150.99,0.00016116,2]
[381383509,1756174232609,-299.99,0.00016116,4]
[381383510,1756174232621,-2751.0,0.00016131,2]
[381383511,1756174232631,-151.0,0.00016328,2]
[381383512,1756174232640,-151.0,0.00016328,2]
[381383513,1756174232650,-151.0,0.00016328,2]
[381383514,1756174232660,-151.0,0.00016328,2]
[381383515,1756174232670,-151.0,0.00016328,2]
[381383516,1756174232679,-151.0,0.00016328,2]
[381383517,1756174232689,-151.0,0.00016328,2]
[381383518,1756174232698,-151.0,0.00016328,2]
[381383519,1756174232707,-151.0,0.00016328,2]
[381383520,1756174232716,-151.0,0.00016328,2]
[381383521,1756174232726,-151.0,0.00016328,2]
[381383523,1756174232735,-151.0,0.00016328,2]
[381383525,1756174232744,-200.0,0.00016328,2]
[381383527,1756174232753,-151.0,0.00016328,2]
[381383529,1756174232762,-494.69170777,0.00016338,2]
[381383531,1756174232772,-150.0,0.00016338,2]
[381383533,1756174232781,-820.4334504,0.00016411,2]
[381383535,1756174232791,-820.41,0.00016412,2]
[381383537,1756174232800,-152.0,0.00016421,2]
[381383539,1756174232809,-539.06,0.00016428,2]
[381383541,1756174232818,-860.183,0.00016436,2]
[381383543,1756174232830,-8758.255,0.00016436,2]
[381383545,1756174232840,-500.0,0.00016437,2]
[381383547,1756174232852,-500.0,0.00016437,2]
[381383549,1756174232865,-420.42709264,0.00016437,2]
[381383551,1756174232882,-500.0,0.00016437,2]
[381383553,1756174232893,-500.0,0.00016437,2]
[381383555,1756174232904,-500.0,0.00016437,2]
[381383557,1756174232913,-500.0,0.00016437,2]
[381383559,1756174232923,-500.0,0.00016437,2]
[381383561,1756174232933,-500.0,0.00016437,2]
[381383562,1756174232942,-500.0,0.00016437,2]
[381383563,1756174232952,-500.0,0.00016437,2]
[381383564,1756174232961,-500.0,0.00016437,2]
[381383565,1756174232971,-500.0,0.00016437,2]
[381383566,1756174232981,-500.0,0.00016437,2]
[381383567,1756174232990,-500.0,0.00016437,2]
[381383568,1756174232999,-500.0,0.00016437,2]
[381383569,1756174233009,-500.0,0.00016437,2]
[381383570,1756174233019,-500.0,0.00016437,2]
[381383571,1756174233029,-500.0,0.00016437,2]
[381383572,1756174233039,-500.0,0.00016437,2]
[381383573,1756174233050,-500.0,0.00016437,2]
[381383574,1756174233060,-500.0,0.00016437,2]
[381383575,1756174233070,-500.0,0.00016437,2]
[381383576,1756174233079,-500.0,0.00016437,2]
[381383577,1756174233088,-500.0,0.00016437,2]
[381383578,1756174233098,-500.0,0.00016437,2]
[381383579,1756174233108,-500.0,0.00016437,2]
[381383580,1756174233118,-500.0,0.00016437,2]
[381383581,1756174233130,-500.0,0.00016437,2]
[381383582,1756174233140,-500.0,0.00016437,2]
[381383583,1756174233150,-500.0,0.00016437,2]
[381383584,1756174233160,-500.0,0.00016437,2]
[381383585,1756174233171,-500.0,0.00016437,2]
[381383586,1756174233182,-500.0,0.00016437,2]
[381383587,1756174233192,-500.0,0.00016437,2]
[381383588,1756174233202,-500.0,0.00016437,2]
[381383589,1756174233212,-500.0,0.00016437,2]
[381383590,1756174233223,-500.0,0.00016437,2]
[381383591,1756174233233,-500.0,0.00016437,2]
[381383592,1756174233243,-500.0,0.00016437,2]
[381383593,1756174233253,-589.03312062,0.00016437,2]
[381383594,1756174233262,-500.0,0.00016437,2]
[381383595,1756174233272,-500.0,0.00016437,2]
[381383596,1756174233282,-500.0,0.00016437,2]
[381383597,1756174233291,-500.0,0.00016437,2]
[381383598,1756174233301,-500.0,0.00016437,2]
[381383599,1756174233310,-500.0,0.00016437,2]
[381383600,1756174233319,-500.0,0.00016437,2]
[381383601,1756174233329,-500.0,0.00016437,2]
[381383602,1756174233338,-500.0,0.00016437,2]
[381383603,1756174233348,-500.0,0.00016437,2]
[381383604,1756174233357,-500.0,0.00016437,2]
[381383605,1756174233367,-500.0,0.00016437,2]
[381383606,1756174233378,-500.0,0.00016437,2]
[381383607,1756174233388,-500.0,0.00016437,2]
[381383608,1756174233397,-500.0,0.00016437,2]
[381383609,1756174233407,-500.0,0.00016437,2]
[381383610,1756174233417,-500.0,0.00016437,2]
[381383611,1756174233426,-500.0,0.00016437,2]
[381383612,1756174233436,-500.0,0.00016437,2]
[381383613,1756174233448,-500.0,0.00016437,2]
[381383614,1756174233457,-500.0,0.00016437,2]
[381383615,1756174233467,-200.0,0.00016437,2]
[381383616,1756174233477,-1038.14209976,0.00016437,5]
[381383617,1756174233486,-220.03908917,0.00016437,2]
[381383618,1756174233496,-302.8527107,0.00016437,2]
[381383619,1756174233505,-400.0,0.00016438,2]
[381383620,1756174233514,-400.0,0.00016438,2]
[381383621,1756174233524,-400.0,0.00016438,2]
[381383622,1756174233536,-400.0,0.00016438,2]
[381383623,1756174233546,-400.0,0.00016438,2]
[381383624,1756174233556,-400.0,0.00016438,2]
[381383625,1756174233565,-400.0,0.00016438,2]
[381383626,1756174233577,-401.45971736,0.00016438,2]
[381383627,1756174233587,-400.0,0.00016438,2]
[381383628,1756174233596,-400.0,0.00016438,2]
[381383629,1756174233607,-401.05706056,0.00016438,2]
[381383630,1756174233617,-400.91013387,0.00016438,2]
[381383631,1756174233628,-400.0,0.00016438,2]
[381383632,1756174233638,-400.0,0.00016438,2]
[381383633,1756174233647,-400.0,0.00016438,2]
[381383634,1756174233657,-400.0,0.00016438,2]
[381383635,1756174233666,-400.0,0.00016438,2]
[381383636,1756174233676,-400.0,0.00016438,2]
[381383637,1756174233685,-468.31,0.00016438,2]
[381383638,1756174233695,-400.0,0.00016438,2]
[381383639,1756174233704,-411.17,0.00016438,2]
[381383640,1756174233715,-400.0,0.00016438,2]
[381383641,1756174233724,-523.96809669,0.00016438,2]
[381383642,1756174233734,-813.43,0.00016438,2]
[381383643,1756174233745,-400.0,0.00016438,2]
[381383644,1756174233754,-500.0,0.00016438,2]
[381383645,1756174233764,-500.0,0.00016438,2]
[381383646,1756174233774,-500.0,0.00016438,2]
[381383647,1756174233784,-500.0,0.00016438,2]
[381383648,1756174233795,-500.0,0.00016438,2]
[381383649,1756174233805,-500.0,0.00016438,2]
[381383650,1756174233816,-500.0,0.00016438,2]
[381383651,1756174233825,-500.0,0.00016438,2]
[381383652,1756174233835,-500.0,0.00016438,2]
[381383653,1756174233845,-500.0,0.00016438,2]
[381383654,1756174233855,-500.0,0.00016438,2]
[381383655,1756174233865,-500.0,0.00016438,2]
[381383656,1756174233876,-500.0,0.00016438,2]
[381383657,1756174233886,-500.0,0.00016438,2]
[381383658,1756174233895,-500.0,0.00016438,2]
[381383659,1756174233905,-500.0,0.00016438,2]
[381383660,1756174233914,-500.0,0.00016438,2]
[381383661,1756174233924,-268.92744926,0.00016438,2]
[381383662,1756174233933,-500.0,0.00016438,2]
[381383663,1756174233943,-277.42912236,0.00016438,2]
[381383664,1756174233953,-400.0,0.00016438,2]
[381383665,1756174233962,-400.0,0.00016438,2]
[381383666,1756174233972,-400.0,0.00016438,2]
[381383667,1756174233981,-400.19676239,0.00016438,2]
[381383668,1756174233991,-400.60849789,0.00016438,2]
[381383669,1756174234001,-400.0,0.00016438,2]
[381383670,1756174234012,-1355.9,0.00016438,2]
[381383671,1756174234022,-400.0,0.00016438,2]
[381383672,1756174234032,-400.0,0.00016438,2]
[381383673,1756174234042,-1266.19,0.00016438,2]
[381383674,1756174234051,-1569.14,0.00016438,2]
[381383675,1756174234060,-1042.94,0.00016438,2]
[381383676,1756174234070,-1478.23,0.00016438,2]
[381383677,1756174234079,-400.0,0.00016438,2]
[381383678,1756174234089,-538.16,0.00016438,2]
[381383679,1756174234099,-400.0,0.00016438,2]
[381383680,1756174234109,-400.0,0.00016438,2]
[381383681,1756174234122,-400.0,0.00016438,2]
[381383682,1756174234138,-500.0,0.00016438,2]
[381383683,1756174234156,-500.0,0.00016438,2]
[381383684,1756174234167,-286.90757515,0.00016438,2]
[381383685,1756174234178,-400.0,0.00016438,2]
[381383686,1756174234188,-400.0,0.00016438,2]
[381383687,1756174234199,-400.0,0.00016438,2]
[381383688,1756174234210,-745.29,0.00016438,2]
[381383689,1756174234220,-400.0,0.00016438,2]
[381383690,1756174234231,-825.35,0.00016438,2]
[381383691,1756174234243,-844.6,0.00016438,2]
[381383692,1756174234254,-400.0,0.00016438,2]
[381383693,1756174234266,-1184.86,0.00016438,2]
[381383694,1756174234277,-361.32152859,0.00016438,2]
[381383695,1756174234287,-400.0,0.00016438,2]
[381383696,1756174234298,-833.87,0.00016438,2]
[381383697,1756174234308,-400.0,0.00016438,2]
[381383698,1756174234318,-74.12402021,0.00016438,2]
[381383699,1756174234338,-462.17597979,0.00016438,2]
[381383700,1756174234348,-710.4,0.00016438,2]
[381383701,1756174234358,-400.0,0.00016438,2]
[381383702,1756174234370,-400.0,0.00016438,2]
[381383703,1756174234383,-763.68,0.00016438,2]
[381383704,1756174234393,-444.55687756,0.00016438,2]
[381383705,1756174234407,-289.01,0.00016438,2]
[381383706,1756174234420,-839.4253,0.00016438,2]
[381383707,1756174234492,-328.80782244,0.00016438,2]
[381383708,1756174234504,-414.86,0.00016438,2]
[381383709,1756174234514,-400.0,0.00016438,2]
[381383710,1756174234526,-797.51,0.00016438,2]
[381383711,1756174234537,-400.0,0.00016438,2]
[381383712,1756174234554,-400.0,0.00016438,2]
[381383713,1756174234564,-431.59231653,0.00016438,2]
[381383714,1756174234576,-400.0,0.00016438,2]
[381383715,1756174234588,-400.0,0.00016438,2]
[381383716,1756174234599,-400.0,0.00016438,2]
[381383717,1756174234611,-400.0,0.00016438,2]
[381383718,1756174234627,-1139.59,0.00016438,2]
[381383719,1756174234637,-797.94,0.00016438,2]
[381383720,1756174234647,-485.21,0.00016438,2]
[381383721,1756174234656,-689.04,0.00016438,2]
[381383722,1756174234666,-400.0,0.00016438,2]
[381383723,1756174234675,-635.88,0.00016438,2]
[381383724,1756174234685,-400.0,0.00016438,2]
[381383725,1756174234694,-400.0,0.00016438,2]
[381383726,1756174234703,-400.0,0.00016438,2]
[381383727,1756174234713,-1247.38,0.00016438,2]
[381383728,1756174234723,-554.94,0.00016438,2]
[381383729,1756174234733,-400.0,0.00016438,2]
[381383730,1756174234744,-400.0,0.00016438,2]
[381383731,1756174234766,-400.0,0.00016438,2]
[381383732,1756174234786,-1160.79,0.00016438,2]
[381383733,1756174234804,-972.12,0.00016438,2]
[381383734,1756174234813,-400.0,0.00016438,2]
[381383735,1756174234823,-400.0,0.00016438,2]
[381383736,1756174234832,-400.0,0.00016438,2]
[381383737,1756174234841,-400.0,0.00016438,2]
[381383738,1756174234851,-410.97,0.00016438,2]
[381383739,1756174234860,-591.24,0.00016438,2]
[381383740,1756174234870,-1506.04,0.00016438,2]
[381383741,1756174234880,-956.7,0.00016438,2]
[381383742,1756174234890,-403.26007856,0.00016438,2]
[381383743,1756174234900,-400.0,0.00016438,2]
[381383744,1756174234909,-400.0,0.00016438,2]
[381383745,1756174234918,-1507.7,0.00016438,2]
[381383746,1756174234928,-400.0,0.00016438,2]
[381383747,1756174234937,-400.0,0.00016438,2]
[381383748,1756174234947,-433.27,0.00016438,2]
[381383749,1756174234957,-433.36,0.00016438,2]
[381383750,1756174234968,-614.03,0.00016438,2]
[381383751,1756174234977,-400.0,0.00016438,2]
[381383752,1756174234987,-400.0,0.00016438,2]
[381383753,1756174234996,-734.61,0.00016438,2]
[381383754,1756174235006,-498.31,0.00016438,2]
[381383755,1756174235016,-760.79,0.00016438,2]
[381383756,1756174235025,-961.5,0.00016438,2]
[381383757,1756174235034,-436.34,0.00016438,2]
[381383758,1756174235046,-44.12929048,0.00016438,2]
[381383759,1756174235188,-782.96070952,0.00016438,2]
[381383760,1756174235198,-903.84,0.00016438,2]
[381383761,1756174235208,-553.97,0.00016438,2]
[381383762,1756174235218,-603.69,0.00016438,2]
[381383763,1756174235229,-1131.52,0.00016438,2]
[381383764,1756174235238,-684.56,0.00016438,2]
[381383765,1756174235247,-578.94,0.00016438,2]
[381383766,1756174235257,-417.85,0.00016438,2]
[381383767,1756174235267,-400.0,0.00016438,2]
[381383768,1756174235277,-612.68,0.00016438,2]
[381383769,1756174235287,-1210.92,0.00016438,2]
[381383770,1756174235296,-400.0,0.00016438,2]
[381383771,1756174235306,-849.16,0.00016438,2]
[381383772,1756174235316,-486.03,0.00016438,2]
[381383773,1756174235328,-1297.23,0.00016438,2]
[381383774,1756174235339,-489.48,0.00016438,2]
[381383775,1756174235348,-400.0,0.00016438,2]
[381383776,1756174235359,-502.51027776,0.00016438,2]
[381383777,1756174235369,-400.0,0.00016438,2]
[381383778,1756174235380,-500.0,0.00016438,2]
[381383779,1756174235390,-500.0,0.00016438,2]
[381383780,1756174235399,-500.0,0.00016438,2]
[381383781,1756174235409,-230.77831564,0.00016438,2]
[381383782,1756174235418,-403.15,0.00016438,2]
[381383783,1756174235427,-500.0,0.00016438,2]
[381383784,1756174235436,-589.22,0.00016438,2]
[381383785,1756174235446,-500.0,0.00016438,2]
[381383786,1756174235455,-360.79900396,0.00016438,2]
[381383787,1756174235463,-844.82,0.00016438,2]
[381383788,1756174235473,-400.0,0.00016438,2]
[381383789,1756174235482,-495.16,0.00016438,2]
[381383790,1756174235491,-1030.49,0.00016438,2]
[381383791,1756174235500,-1144.24,0.00016438,2]
[381383792,1756174235510,-780.08,0.00016438,2]
[381383793,1756174235519,-816.78,0.00016438,2]
[381383794,1756174235532,-851.38,0.00016438,2]